bitfinex/quotes_BTCUSD_20240730
["timestamp","ask_amount","ask_price","bid_price","bid_amount"]
[1722379384333,0.18643303,66411.0,66410.0,0.260513]
[1722379384541,0.18643303,66411.0,66410.0,0.115913]
[1722379384542,0.70214473,66411.0,66410.0,0.115913]
[1722379384759,1.08969873,66411.0,66410.0,0.106913]
[1722379384986,1.25543882,66411.0,66410.0,0.106913]
[1722379385190,1.25543882,66411.0,66410.0,0.115913]
[1722379386796,1.21794829,66411.0,66410.0,0.115913]
[1722379387162,1.25506778,66411.0,66410.0,0.115913]
[1722379387985,1.25506778,66411.0,66410.0,0.106913]
[1722379388425,1.25506778,66411.0,66410.0,0.115913]
[1722379389545,0.80353308,66411.0,66410.0,0.175913]
[1722379390157,0.80353308,66411.0,66410.0,0.115913]
[1722379390363,0.80392499,66411.0,66410.0,0.115913]
[1722379390785,0.76641359,66411.0,66410.0,0.115913]
[1722379390997,0.80427846,66411.0,66410.0,0.115913]
[1722379395192,0.83795121,66411.0,66410.0,0.115913]
[1722379397020,0.80008634,66411.0,66410.0,0.115913]
[1722379397231,0.83827733,66411.0,66410.0,0.115913]
[1722379398918,0.92467733,66411.0,66410.0,0.106913]
[1722379399122,1.44448321,66411.0,66410.0,0.106913]
[1722379399746,1.74563721,66411.0,66410.0,0.106913]
[1722379400175,1.74363721,66411.0,66410.0,0.100913]
[1722379400401,2.48837986,66411.0,66410.0,0.100913]
[1722379400619,2.40797986,66411.0,66410.0,0.100913]
[1722379400849,2.65427986,66411.0,66410.0,0.100913]
[1722379401305,2.64827986,66411.0,66410.0,0.100913]
[1722379401724,2.65727986,66411.0,66410.0,0.100913]
[1722379401907,2.65627986,66411.0,66410.0,0.100913]
[1722379402785,2.65727986,66411.0,66410.0,0.100913]
[1722379403201,2.66427986,66411.0,66410.0,0.100913]
[1722379403408,3.94407986,66411.0,66410.0,0.100913]
[1722379403641,3.83214834,66411.0,66410.0,0.100913]
[1722379403852,3.94382801,66411.0,66410.0,0.100913]
[1722379404061,3.94382818,66411.0,66410.0,0.100913]
[1722379404260,4.15859266,66411.0,66410.0,0.100913]
[1722379404695,4.16859266,66411.0,66410.0,0.100913]
[1722379405320,3.94682818,66411.0,66410.0,0.100913]
[1722379406256,3.94782818,66411.0,66410.0,0.100913]
[1722379406484,1.809718,66400.0,66399.0,0.000913]
[1722379406690,2.13185303,66400.0,66399.0,0.000913]
[1722379406902,2.14153906,66400.0,66399.0,0.000913]
[1722379407310,2.067624,66400.0,66399.0,0.000913]
[1722379407517,2.06942298,66400.0,66399.0,0.000913]
[1722379407723,2.2211173,66400.0,66399.0,0.003913]
[1722379408335,2.20541887,66400.0,66399.0,0.003913]
[1722379408544,2.20441887,66400.0,66399.0,0.000913]
[1722379408955,2.20641887,66400.0,66399.0,0.000913]
[1722379409364,2.07142298,66400.0,66399.0,0.000913]
[1722379409567,2.2221173,66400.0,66399.0,0.000913]
[1722379410119,2.2271173,66400.0,66399.0,0.000913]
[1722379410364,2.2270758,66400.0,66399.0,0.000913]
[1722379410986,2.2331148,66400.0,66399.0,0.000913]
[1722379413293,2.2431148,66400.0,66399.0,0.000913]
[1722379413506,2.2331148,66400.0,66399.0,0.000913]
[1722379413748,2.23311723,66400.0,66399.0,0.000913]
[1722379413999,2.23329056,66400.0,66399.0,0.000913]
[1722379415540,2.24247428,66400.0,66399.0,0.000913]
[1722379416405,2.31637109,66400.0,66399.0,0.000913]
[1722379417051,2.2034584,66400.0,66399.0,0.000913]
[1722379417256,2.31646885,66400.0,66399.0,0.000913]
[1722379417667,2.31646918,66400.0,66399.0,0.000913]
[1722379420496,3.89754411,66400.0,66399.0,0.000913]
[1722379420718,4.0592667,66400.0,66399.0,0.000913]
[1722379420935,3.90754411,66400.0,66399.0,0.000913]
[1722379421369,3.89754411,66400.0,66399.0,0.000913]
[1722379421639,4.04922136,66400.0,66399.0,0.000913]
[1722379421863,4.05922136,66400.0,66399.0,0.000913]
[1722379423226,3.90754411,66400.0,66399.0,0.000913]
[1722379423873,3.90793174,66400.0,66399.0,0.000913]
[1722379425461,3.93156484,66400.0,66399.0,0.000913]
[1722379426089,3.8180955,66400.0,66399.0,0.000913]
[1722379426296,3.93031135,66400.0,66399.0,0.000913]
[1722379427142,3.92031135,66400.0,66399.0,0.000913]
[1722379427342,3.89665826,66400.0,66399.0,0.000913]
[1722379430677,3.7844624,66400.0,66399.0,0.000913]
[1722379430886,3.89727999,66400.0,66399.0,0.000913]
[1722379431106,3.89716119,66400.0,66399.0,0.000913]
[1722379431317,4.04888568,66400.0,66399.0,0.000913]
[1722379432760,3.89716119,66400.0,66399.0,0.000913]
[1722379432981,4.04894013,66400.0,66399.0,0.000913]
[1722379433808,4.04633102,66400.0,66399.0,0.000913]
[1722379434047,3.8207555,66400.0,66399.0,0.000913]
[1722379434317,3.89469364,66400.0,66399.0,0.000913]
[1722379435160,4.04650918,66400.0,66399.0,0.000913]
[1722379435336,3.89469364,66400.0,66399.0,0.000913]
[1722379437539,3.89473052,66400.0,66399.0,0.000913]
[1722379440747,3.89472831,66400.0,66399.0,0.000913]
[1722379442910,1.975176,66394.0,66393.0,1e-06]
[1722379443171,1.975176,66394.0,66391.0,0.0015542]
[1722379443172,0.931802,66386.0,66380.0,0.009328]
[1722379443414,0.170645,66381.0,66380.0,0.009328]
[1722379443656,1.78020429,66381.0,66380.0,0.009328]
[1722379443888,1.80320429,66381.0,66380.0,0.009328]
[1722379444142,1.80302306,66381.0,66380.0,0.009328]
[1722379444409,2.10431406,66381.0,66380.0,0.009328]
[1722379444651,2.32272104,66381.0,66380.0,0.009328]
[1722379444887,2.48262104,66381.0,66380.0,0.009328]
[1722379445165,2.48262104,66381.0,66366.0,0.150028]
[1722379445166,0.150677,66367.0,66366.0,0.150028]
[1722379445437,0.87946849,66367.0,66366.0,0.150028]
[1722379445704,1.18844756,66367.0,66366.0,0.150028]
[1722379445941,1.48980156,66367.0,66366.0,0.150028]
[1722379446167,1.64229486,66367.0,66366.0,0.150028]
[1722379446405,1.64244394,66367.0,66366.0,0.150028]
[1722379447468,1.78053609,66367.0,66366.0,0.150028]
[1722379448236,1.64544394,66367.0,66366.0,0.150028]
[1722379448706,1.83006271,66367.0,66366.0,0.009328]
[1722379448963,1.92024394,66367.0,66366.0,0.009328]
[1722379449428,1.73861137,66367.0,66366.0,0.009328]
[1722379449669,1.7755265,66367.0,66366.0,0.009328]
[1722379449908,1.79851442,66367.0,66366.0,0.009328]
[1722379450400,1.95627884,66367.0,66366.0,0.009328]
[1722379450634,1.81151442,66367.0,66366.0,0.009328]
[1722379451326,1.81151442,66367.0,66366.0,0.073328]
[1722379452762,1.82233319,66367.0,66366.0,0.009328]
[1722379453012,1.90226088,66367.0,66366.0,0.009328]
[1722379453260,2.03709194,66367.0,66366.0,0.009328]
[1722379453500,1.90226088,66367.0,66366.0,0.009328]
[1722379453968,1.97731467,66367.0,66366.0,0.009328]
[1722379454426,1.90226088,66367.0,66366.0,0.009328]
[1722379455119,1.9772575,66367.0,66366.0,0.009328]
[1722379455798,2.2786115,66367.0,66366.0,0.009328]
[1722379456016,2.3427115,66367.0,66366.0,0.009328]
[1722379456230,2.22757206,66367.0,66366.0,0.009328]
[1722379456444,2.34271355,66367.0,66366.0,0.009328]
[1722379456668,2.34233208,66367.0,66366.0,0.009328]
[1722379457350,2.32933208,66367.0,66366.0,0.009328]
[1722379457557,2.31533208,66367.0,66366.0,0.009328]
[1722379457763,2.34333208,66367.0,66366.0,0.009328]
[1722379458188,2.34333208,66367.0,66366.0,0.009288]
[1722379459449,2.22857206,66367.0,66366.0,0.009288]
[1722379459703,2.34317015,66367.0,66366.0,0.009288]
[1722379460176,2.47779795,66367.0,66366.0,0.009288]
[1722379461262,2.34317015,66367.0,66366.0,0.009288]
[1722379462954,2.33248115,66367.0,66366.0,0.009288]
[1722379463170,2.34329992,66367.0,66366.0,0.009288]
[1722379463401,2.50219992,66367.0,66366.0,0.009288]
[1722379465491,2.50219992,66367.0,66360.0,0.009328]
[1722379465492,1.97841377,66361.0,66360.0,0.009328]
[1722379465729,2.64049144,66361.0,66360.0,0.009328]
[1722379465973,2.82264852,66361.0,66360.0,0.009328]
[1722379466230,2.84564852,66361.0,66360.0,0.009328]
[1722379466470,2.84575409,66361.0,66360.0,0.009328]
[1722379466705,2.99650841,66361.0,66360.0,0.009328]
[1722379466933,3.01050841,66361.0,66360.0,0.009328]
[1722379468567,3.02350841,66361.0,66360.0,0.009328]
[1722379468989,4.30330841,66361.0,66360.0,0.009328]
[1722379469634,4.30397195,66361.0,66360.0,0.009328]
[1722379470080,4.30397395,66361.0,66360.0,0.009328]
[1722379470290,4.41602694,66361.0,66360.0,0.009328]
[1722379470501,4.30397395,66361.0,66360.0,0.009328]
[1722379471163,4.41601996,66361.0,66360.0,0.009328]
[1722379471385,4.30397395,66361.0,66360.0,0.009328]
[1722379472230,4.41601432,66361.0,66360.0,0.009328]
[1722379472885,4.30397395,66361.0,66360.0,0.009328]
[1722379473116,4.41635413,66361.0,66360.0,0.009328]
[1722379473751,4.30430806,66361.0,66360.0,0.009328]
[1722379474180,4.39394578,66361.0,66360.0,0.009328]
[1722379474388,4.30430806,66361.0,66360.0,0.009328]
[1722379475261,4.1883789,66361.0,66360.0,0.009328]
[1722379475482,4.30461042,66361.0,66360.0,0.009328]
[1722379476354,4.1883789,66361.0,66360.0,0.009328]
[1722379476565,4.30471043,66361.0,66360.0,0.009328]
[1722379477185,0.150727,66345.0,66344.0,0.1404]
[1722379477401,1.05631728,66345.0,66344.0,0.1404]
[1722379477630,1.66634019,66345.0,66344.0,0.1404]
[1722379478704,1.66813917,66345.0,66344.0,0.1404]
[1722379478947,1.81883349,66345.0,66344.0,0.1404]
[1722379479161,1.82183349,66345.0,66344.0,0.1404]
[1722379479383,1.82783349,66345.0,66344.0,0.1404]
[1722379479825,1.82831347,66345.0,66344.0,0.1404]
[1722379482073,1.81931347,66345.0,66344.0,0.1404]
[1722379482294,1.82531347,66345.0,66344.0,0.1404]
[1722379482527,1.82631347,66345.0,66344.0,0.1404]
[1722379483030,1.82612997,66345.0,66344.0,0.1404]
[1722379483270,1.83612997,66345.0,66344.0,0.1404]
[1722379483502,1.71955121,66345.0,66344.0,0.1404]
[1722379483743,1.83613007,66345.0,66344.0,0.1404]
[1722379485342,1.8361218,66345.0,66344.0,0.1404]
[1722379485786,1.68542748,66345.0,66344.0,0.1404]
[1722379486016,1.30822953,66345.0,66344.0,0.1404]
[1722379486244,1.38397688,66345.0,66344.0,0.1404]
[1722379486474,1.26740289,66345.0,66344.0,0.1404]
[1722379486691,1.38398117,66345.0,66344.0,0.1404]
[1722379486937,1.53467549,66345.0,66344.0,0.1404]
[1722379487364,1.62452065,66345.0,66344.0,0.1404]
[1722379487574,1.53467549,66345.0,66344.0,0.1404]
[1722379490392,1.66966087,66345.0,66344.0,0.1404]
[1722379491274,1.53467549,66345.0,66344.0,0.1404]
[1722379491727,1.53467549,66345.0,66344.0,0.1494]
[1722379491728,1.38398117,66345.0,66344.0,0.1494]
[1722379491942,1.38398117,66345.0,66344.0,0.1404]
[1722379492393,1.38398117,66345.0,66344.0,0.1494]
[1722379492610,1.37698117,66345.0,66344.0,0.1494]
[1722379492832,1.51594137,66345.0,66344.0,0.1494]
[1722379493070,1.31296309,66345.0,66344.0,0.1494]
[1722379493283,1.42000847,66345.0,66344.0,0.1494]
[1722379493492,1.50640847,66345.0,66344.0,0.1494]
[1722379493704,1.50940847,66345.0,66344.0,0.1494]
[1722379494398,1.42300847,66345.0,66344.0,0.1494]
[1722379494624,1.50940847,66345.0,66344.0,0.1494]
[1722379494883,1.51540847,66345.0,66344.0,0.1494]
[1722379495118,1.65046,66345.0,66344.0,0.1494]
[1722379495339,1.51540847,66345.0,66344.0,0.1494]
[1722379496540,1.39836309,66345.0,66344.0,0.1494]
[1722379496774,1.51680738,66345.0,66344.0,0.1494]
[1722379497000,1.51671588,66345.0,66344.0,0.1494]
[1722379498663,0.13626668,66345.0,66344.0,0.14958123]
[1722379498901,0.05963237,66345.0,66344.0,0.60176923]
[1722379499136,0.17228828,66345.0,66344.0,0.60176923]
[1722379499365,0.05963237,66345.0,66344.0,0.60176923]
[1722379499609,0.05363237,66345.0,66344.0,0.60176923]
[1722379499851,0.05188576,66345.0,66344.0,0.60276923]
[1722379500314,0.05288576,66345.0,66344.0,0.60276923]
[1722379500546,0.05288576,66345.0,66344.0,0.61079023]
[1722379500769,0.05288576,66345.0,66344.0,0.30933123]
[1722379500990,0.05288576,66345.0,66344.0,0.61079023]
[1722379501224,0.05188576,66345.0,66344.0,0.60979023]
[1722379501450,0.05288576,66345.0,66344.0,0.61179023]
[1722379502070,0.05265445,66345.0,66344.0,0.61179023]
[1722379502525,0.14274764,66345.0,66344.0,0.61179023]
[1722379502860,0.05265445,66345.0,66344.0,0.15960223]
[1722379503398,0.20338145,66345.0,66344.0,0.15960223]
[1722379503616,0.31599348,66345.0,66344.0,0.15960223]
[1722379503846,0.20338145,66345.0,66344.0,0.15960223]
[1722379504064,0.20238145,66345.0,66344.0,0.15960223]
[1722379504270,0.20238145,66345.0,66344.0,0.150421]
[1722379504458,0.20238145,66345.0,66344.0,0.15960223]
[1722379504720,0.20138145,66345.0,66344.0,0.15760223]
[1722379505163,0.20238145,66345.0,66344.0,0.15960223]
[1722379505393,0.20276954,66345.0,66344.0,0.15960223]
[1722379505617,0.05104232,66345.0,66344.0,0.15760223]
[1722379505879,0.16266967,66345.0,66344.0,0.30833123]
[1722379506140,0.16366967,66345.0,66344.0,0.15760223]
[1722379506377,0.05104232,66345.0,66344.0,0.15960223]
[1722379506601,0.05104232,66345.0,66344.0,0.61480461]
[1722379506834,0.05104232,66345.0,66344.0,0.60979023]
[1722379507051,0.10001601,66345.0,66344.0,0.60979023]
[1722379507266,0.00279898,66345.0,66344.0,0.60979023]
[1722379507481,0.09190907,66345.0,66344.0,0.60979023]
[1722379508346,0.09290907,66345.0,66344.0,0.61179023]
[1722379508565,0.09290218,66345.0,66344.0,0.61179023]
[1722379509014,0.09390175,66345.0,66344.0,0.61179023]
[1722379510213,0.09390175,66345.0,66344.0,0.61233123]
[1722379511791,0.09389571,66345.0,66344.0,0.61233123]
[1722379512546,0.00379898,66345.0,66344.0,0.61233123]
[1722379514464,0.00379898,66345.0,66344.0,0.91379023]
[1722379514687,0.00379898,66345.0,66344.0,0.61233123]
[1722379517139,0.00379898,66345.0,66344.0,0.31087223]
[1722379518067,0.00379898,66345.0,66344.0,0.61233123]
[1722379519035,0.00379898,66345.0,66344.0,0.31087223]
[1722379519282,0.00379898,66345.0,66344.0,0.61233123]
[1722379522273,0.00379898,66345.0,66344.0,0.31087223]
[1722379522503,0.04549148,66345.0,66344.0,0.31087223]
[1722379522947,0.04549148,66345.0,66344.0,0.16014323]
[1722379523168,0.04549148,66345.0,66344.0,0.31087223]
[1722379523978,0.04524989,66345.0,66344.0,0.31087223]
[1722379525309,0.04527587,66345.0,66344.0,0.31087223]
[1722379526596,0.04527587,66345.0,66344.0,0.61233123]
[1722379527075,0.04527587,66345.0,66344.0,0.31087223]
[1722379528656,0.04562012,66345.0,66344.0,0.31087223]
[1722379529380,0.04562012,66345.0,66344.0,0.91379023]
[1722379529610,0.04562012,66345.0,66344.0,0.61233123]
[1722379530051,0.04562012,66345.0,66344.0,0.31087223]
[1722379530505,0.24079103,66349.0,66348.0,0.00918123]
[1722379531422,0.24079003,66349.0,66348.0,0.00918123]
[1722379531654,0.150718,66349.0,66348.0,0.00918123]
[1722379531885,0.24082343,66349.0,66348.0,0.01118123]
[1722379532351,0.24083182,66349.0,66348.0,0.01118123]
[1722379532867,0.11263179,66351.0,66350.0,0.00918123]
[1722379533104,0.56477279,66351.0,66350.0,0.00918123]
[1722379533325,0.452141,66351.0,66350.0,0.00918123]
[1722379534080,0.753568,66351.0,66350.0,0.00918123]
[1722379534758,0.753577,66350.0,66349.0,0.009]
[1722379534987,0.753577,66350.0,66345.0,0.05437988]
[1722379534988,0.452173,66346.0,66345.0,0.05437988]
[1722379535212,0.452173,66346.0,66345.0,0.06337988]
[1722379535213,1.141471,66346.0,66345.0,0.06337988]
[1722379536117,1.14128963,66346.0,66345.0,0.06337988]
[1722379536811,1.14228963,66346.0,66345.0,0.06337988]
[1722379537247,1.27752405,66346.0,66345.0,0.06337988]
[1722379537463,1.14228963,66346.0,66345.0,0.06337988]
[1722379537697,1.14228963,66346.0,66345.0,0.05437988]
[1722379538149,1.14228963,66346.0,66345.0,0.06637988]
[1722379538362,1.31489386,66346.0,66345.0,0.06637988]
[1722379539632,1.31489386,66346.0,66345.0,0.012]
[1722379539856,1.46142975,66346.0,66345.0,0.012]
[1722379540272,1.32619533,66346.0,66345.0,0.012]
[1722379541536,1.32624543,66346.0,66345.0,0.012]
[1722379542392,1.17970954,66346.0,66345.0,0.012]
[1722379542598,0.79186054,66346.0,66345.0,0.012]
[1722379542805,0.03841991,66346.0,66345.0,0.15548123]
[1722379543215,0.03841991,66346.0,66345.0,0.15639423]
[1722379543861,0.17377319,66346.0,66345.0,0.15639423]
[1722379544797,0.03933164,66346.0,66345.0,0.15639423]
[1722379545018,0.17471333,66346.0,66345.0,0.15639423]
[1722379545460,0.03933164,66346.0,66345.0,0.15639423]
[1722379546314,0.19005564,66346.0,66345.0,0.15639423]
[1722379546760,0.03927744,66346.0,66345.0,0.15639423]
[1722379548330,0.001,66346.0,66345.0,0.15639423]
[1722379548551,0.03927649,66346.0,66345.0,0.15639423]
[1722379549044,0.03927668,66346.0,66345.0,0.15639423]
[1722379549747,0.19000068,66346.0,66345.0,0.15639423]
[1722379549961,0.03927668,66346.0,66345.0,0.15639423]
[1722379550351,0.19000068,66346.0,66345.0,0.15639423]
[1722379550562,0.151724,66346.0,66345.0,0.15639423]
[1722379550769,0.18971082,66346.0,66345.0,0.15639423]
[1722379551241,0.27611082,66346.0,66345.0,0.15639423]
[1722379551463,0.57755982,66346.0,66345.0,0.09029423]
[1722379551704,0.57700838,66346.0,66345.0,0.09029423]
[1722379551947,0.87845738,66346.0,66345.0,0.01309423]
[1722379552168,1.03076022,66346.0,66345.0,0.01309423]
[1722379552390,0.87845738,66346.0,66345.0,0.01309423]
[1722379552607,1.03076022,66346.0,66345.0,0.01309423]
[1722379553658,0.87662241,66346.0,66345.0,0.01309423]
[1722379554962,0.87659432,66346.0,66345.0,0.01309423]
[1722379556965,1.02450014,66346.0,66345.0,0.01309423]
[1722379557621,0.87659432,66346.0,66345.0,0.01309423]
[1722379558073,1.25504332,66346.0,66345.0,0.003913]
[1722379558325,1.32104332,66346.0,66345.0,0.003913]
[1722379559237,1.7177781,66346.0,66345.0,0.003913]
[1722379559474,1.96847242,66346.0,66345.0,0.003913]
[1722379560145,1.96847242,66346.0,66345.0,0.000913]
[1722379560360,1.7313781,66346.0,66345.0,0.000913]
[1722379560575,1.8187781,66346.0,66345.0,0.001913]
[1722379560786,1.8177781,66346.0,66345.0,0.000913]
[1722379561009,1.70808503,66346.0,66345.0,0.000913]
[1722379561223,1.81728239,66346.0,66345.0,0.000913]
[1722379561668,1.81728239,66346.0,66345.0,0.001913]
[1722379562157,1.8957257,66346.0,66345.0,0.000913]
[1722379562582,1.9017257,66346.0,66345.0,0.000913]
[1722379563788,1.90156423,66346.0,66345.0,0.000913]
[1722379564210,1.82512092,66346.0,66345.0,0.000913]
[1722379567081,1.82554907,66346.0,66345.0,0.000913]
[1722379569819,1.83487707,66346.0,66345.0,0.000913]
[1722379570028,1.84487707,66346.0,66345.0,0.000913]
[1722379570256,1.84468839,66346.0,66345.0,0.000913]
[1722379571582,1.99538271,66346.0,66345.0,0.000913]
[1722379571784,2.75718071,66346.0,66345.0,1e-06]
[1722379571990,2.99009977,66346.0,66345.0,1e-06]
[1722379572201,1.68176177,66345.0,66344.0,0.008562]
[1722379572429,2.75918545,66345.0,66344.0,0.008562]
[1722379572644,2.9811812,66345.0,66344.0,0.008562]
[1722379573268,2.75918545,66345.0,66344.0,0.008562]
[1722379573476,2.75983569,66345.0,66344.0,0.008562]
[1722379573686,2.97095835,66345.0,66344.0,0.008562]
[1722379573902,2.67791009,66345.0,66344.0,0.008562]
[1722379574104,2.77701907,66345.0,66344.0,0.008562]
[1722379574510,2.32487075,66345.0,66344.0,0.008562]
[1722379575177,2.33468952,66345.0,66344.0,0.008562]
[1722379575393,2.16597075,66345.0,66344.0,0.008562]
[1722379575594,2.1285687,66345.0,66344.0,0.008562]
[1722379575819,2.16668476,66345.0,66344.0,0.008562]
[1722379576030,2.31737908,66345.0,66344.0,0.008562]
[1722379576243,2.61737908,66345.0,66344.0,0.008562]
[1722379576471,2.46668476,66345.0,66344.0,0.008562]
[1722379576684,2.356043,66345.0,66344.0,0.008562]
[1722379576896,2.01181992,66345.0,66344.0,0.008562]
[1722379577120,2.39821992,66345.0,66344.0,0.008562]
[1722379577967,2.09821992,66345.0,66344.0,0.008562]
[1722379578174,2.01181992,66345.0,66344.0,0.008562]
[1722379578386,1.78676592,66345.0,66344.0,0.008562]
[1722379578619,1.77276592,66345.0,66344.0,0.008562]
[1722379579309,1.77176592,66345.0,66344.0,0.008562]
[1722379579515,1.75876592,66345.0,66344.0,0.008562]
[1722379579714,1.77276592,66345.0,66344.0,0.008562]
[1722379579923,1.78476592,66345.0,66344.0,0.008562]
[1722379580149,1.78451261,66345.0,66344.0,0.008562]
[1722379581650,1.81183836,66345.0,66344.0,0.008562]
[1722379583394,1.81223956,66345.0,66344.0,0.008562]
[1722379583839,1.95083956,66345.0,66344.0,0.008562]
[1722379586686,1.83941475,66345.0,66344.0,0.008562]
[1722379586900,1.95062343,66345.0,66344.0,0.008562]
[1722379587121,1.673489,66345.0,66344.0,0.008562]
[1722379587330,1.7846918,66345.0,66344.0,0.008562]
[1722379587768,1.93680794,66345.0,66344.0,0.008562]
[1722379588197,1.7846918,66345.0,66344.0,0.008562]
[1722379589089,1.7846918,66345.0,66344.0,0.017562]
[1722379589728,1.7846918,66345.0,66344.0,0.02243]
[1722379589941,1.673489,66345.0,66344.0,0.02243]
[1722379590182,1.78652682,66345.0,66344.0,0.02243]
[1722379590660,1.71268178,66345.0,66344.0,0.02243]
[1722379590878,1.78690693,66345.0,66344.0,0.02243]
[1722379592713,1.78690693,66345.0,66344.0,0.01343]
[1722379593379,1.78689072,66345.0,66344.0,0.01343]
[1722379593892,1.78246349,66345.0,66344.0,0.01343]
[1722379595362,1.78246349,66345.0,66344.0,0.02243]
[1722379596303,1.78246349,66345.0,66344.0,0.01343]
[1722379596773,1.78263024,66345.0,66344.0,0.01343]
[1722379596995,1.93332456,66345.0,66344.0,0.01343]
[1722379599568,1.78263024,66345.0,66344.0,0.01343]
[1722379600525,1.78271365,66345.0,66344.0,0.01343]
[1722379602002,1.78271365,66345.0,66344.0,0.02243]
[1722379602253,1.78271365,66345.0,66344.0,0.01343]
[1722379603190,1.66906177,66345.0,66344.0,0.01343]
[1722379603428,1.78369303,66345.0,66344.0,0.01343]
[1722379606599,1.7841284,66345.0,66344.0,0.01343]
[1722379607090,1.78295789,66345.0,66344.0,0.01343]
[1722379613434,1.66906177,66345.0,66344.0,0.01343]
[1722379613676,1.78297945,66345.0,66344.0,0.01343]
[1722379613902,1.78298831,66345.0,66344.0,0.01343]
[1722379616284,1.93368263,66345.0,66344.0,0.01343]
[1722379616671,1.81975609,66345.0,66344.0,0.01343]
[1722379616878,1.9336629,66345.0,66344.0,0.01343]
[1722379617921,1.78296858,66345.0,66344.0,0.01343]
[1722379618328,1.78296858,66345.0,66344.0,0.02243]
[1722379618761,1.78296858,66345.0,66344.0,0.01343]
[1722379620178,1.78299774,66345.0,66344.0,0.01343]
[1722379622478,1.78100017,66345.0,66344.0,0.01343]
[1722379622922,1.88411948,66345.0,66344.0,0.01343]
[1722379625637,1.88363592,66345.0,66344.0,0.01343]
[1722379626257,1.88378012,66345.0,66344.0,0.01343]
[1722379628003,1.88360619,66345.0,66344.0,0.01343]
[1722379628650,1.69408688,66345.0,66344.0,0.01343]
[1722379628859,1.78048688,66345.0,66344.0,0.01343]
[1722379629062,1.78135959,66345.0,66344.0,0.01343]
[1722379632486,1.78182301,66345.0,66344.0,0.01343]
[1722379633139,1.69542301,66345.0,66344.0,0.01343]
[1722379633359,1.78182301,66345.0,66344.0,0.01343]
[1722379633996,1.76782301,66345.0,66344.0,0.01343]
[1722379634455,1.66942301,66345.0,66344.0,0.01343]
[1722379634672,1.76382301,66345.0,66344.0,0.01343]
[1722379635529,1.77482301,66345.0,66344.0,0.01343]
[1722379635745,1.77546725,66345.0,66344.0,0.01343]
[1722379637906,1.92616157,66345.0,66344.0,0.01343]
[1722379638143,2.00796157,66345.0,66344.0,0.01343]
[1722379638369,2.30941557,66345.0,66344.0,0.01343]
[1722379638779,2.30941557,66345.0,66344.0,0.014343]
[1722379639045,2.30930545,66345.0,66344.0,0.014343]
[1722379639501,2.30930552,66345.0,66344.0,0.014343]
[1722379639768,2.38460552,66345.0,66344.0,0.014343]
[1722379639983,2.39542429,66345.0,66344.0,0.014343]
[1722379640837,2.38460552,66345.0,66344.0,0.014343]
[1722379641259,2.38517296,66345.0,66344.0,0.014343]
[1722379641512,3.66497296,66345.0,66344.0,0.014343]
[1722379642403,3.65508464,66345.0,66344.0,0.014343]
[1722379642623,3.35729032,66345.0,66344.0,0.014343]
[1722379642834,3.35729055,66345.0,66344.0,0.014343]
[1722379645665,3.35752967,66345.0,66344.0,0.014343]
[1722379647445,2.07772967,66345.0,66344.0,0.014343]
[1722379647892,2.07772967,66345.0,66344.0,0.089743]
[1722379648730,2.07772967,66345.0,66344.0,0.098743]
[1722379648731,1.99132967,66345.0,66344.0,0.098743]
[1722379648958,1.96434577,66345.0,66344.0,0.089743]
[1722379649171,2.07856055,66345.0,66344.0,0.089743]
[1722379649393,2.07852137,66345.0,66344.0,0.089743]
[1722379651082,2.07852137,66345.0,66344.0,0.098743]
[1722379651626,2.07852137,66345.0,66344.0,0.089743]
[1722379652466,2.07852137,66345.0,66344.0,0.014343]
[1722379653285,2.30086332,66345.0,66344.0,0.014343]
[1722379655477,1.96434577,66345.0,66344.0,0.014343]
[1722379655683,2.30079521,66345.0,66344.0,0.014343]
[1722379658923,2.30094167,66345.0,66344.0,0.014343]
[1722379659392,2.30093547,66345.0,66344.0,0.014343]
[1722379660489,2.32879173,66345.0,66344.0,0.014343]
[1722379661039,2.30093547,66345.0,66344.0,0.014343]
[1722379661257,2.30100122,66345.0,66344.0,0.014343]
[1722379662386,1.96434577,66345.0,66344.0,0.014343]
[1722379662607,2.30091066,66345.0,66344.0,0.014343]
[1722379662838,2.07863219,66345.0,66344.0,0.014343]
[1722379663034,2.30091066,66345.0,66344.0,0.014343]
[1722379665291,2.07863219,66345.0,66344.0,0.014343]
[1722379665464,2.30091066,66345.0,66344.0,0.014343]
[1722379665687,2.07831262,66345.0,66344.0,0.014343]
[1722379667091,2.07819097,66345.0,66344.0,0.014343]
[1722379669224,2.07823713,66345.0,66344.0,0.014343]
[1722379669453,2.07819934,66345.0,66344.0,0.014343]
[1722379671690,2.2176772,66345.0,66344.0,0.014343]
[1722379671923,2.50232913,66345.0,66344.0,0.014343]
[1722379672362,2.38846999,66345.0,66344.0,0.014343]
[1722379672607,2.3768574,66345.0,66344.0,0.014343]
[1722379673060,2.6783114,66345.0,66344.0,0.014343]
[1722379673288,2.6783114,66345.0,66328.0,0.009]
[1722379673289,0.452263,66333.0,66330.0,0.0755]
[1722379673515,0.452263,66333.0,66327.0,0.009]
[1722379673516,1.169396,66333.0,66327.0,0.009]
[1722379673747,1.570905,66333.0,66327.0,0.009]
[1722379673990,1.593905,66333.0,66328.0,0.009]
[1722379674868,1.598905,66333.0,66328.0,0.009]
[1722379675079,1.75759932,66333.0,66328.0,0.009]
[1722379675564,1.64348432,66333.0,66328.0,0.009]
[1722379675806,1.75738189,66333.0,66328.0,0.009]
[1722379678663,1.75738189,66333.0,66327.0,0.009]
[1722379679127,1.75782146,66333.0,66327.0,0.009]
[1722379679498,1.64348432,66333.0,66327.0,0.009]
[1722379679722,1.76651159,66333.0,66327.0,0.009]
[1722379679938,1.76651159,66333.0,66328.0,0.009]
[1722379680369,1.76651159,66333.0,66327.0,0.009]
[1722379681433,1.76632388,66333.0,66327.0,0.009]
[1722379682104,1.76632388,66333.0,66328.0,0.009]
[1722379684931,1.76632388,66333.0,66326.0,0.1379]
[1722379684932,1.76618447,66333.0,66327.0,0.009]
[1722379686299,1.76618447,66333.0,66326.0,0.132568]
[1722379686300,0.237168,66327.0,66326.0,0.132568]
[1722379686518,0.57809594,66327.0,66326.0,0.132568]
[1722379686727,1.18116794,66327.0,66326.0,0.132568]
[1722379687607,1.18216794,66327.0,66326.0,0.132568]
[1722379687824,1.33065993,66327.0,66326.0,0.132568]
[1722379688941,1.73219593,66327.0,66326.0,0.132568]
[1722379691173,1.69280399,66327.0,66326.0,0.132568]